fUST/lending_fUST_20250219
["ID","MTS","AMOUNT","RATE_DAILY","PERIOD"]
[353632031,1739970645533,-587.0,0.00016374,2]
[353632033,1739970645542,-456.0,0.00016375,2]
[353632035,1739970645553,-456.0,0.00016375,2]
[353632037,1739970645563,-456.0,0.00016375,2]
[353632039,1739970645573,-456.0,0.00016375,2]
[353632041,1739970645591,-456.0,0.00016375,2]
[353632043,1739970645610,-456.0,0.00016375,2]
[353632046,1739970645625,-456.0,0.00016375,2]
[353632048,1739970645634,-456.0,0.00016375,2]
[353632050,1739970645643,-456.0,0.00016375,2]
[353632051,1739970645653,-456.0,0.00016375,2]
[353632054,1739970645663,-456.0,0.00016375,2]
[353632055,1739970645672,-456.0,0.00016375,2]
[353632058,1739970645682,-456.0,0.00016375,2]
[353632060,1739970645691,-456.0,0.00016375,2]
[353632062,1739970645700,-587.0,0.00016375,2]
[353632063,1739970645709,-587.0,0.00016375,2]
[353632066,1739970645718,-587.0,0.00016375,2]
[353632067,1739970645728,-587.0,0.00016375,2]
[353632070,1739970645738,-587.0,0.00016375,2]
[353632071,1739970645747,-587.0,0.00016375,2]
[353632074,1739970645757,-587.0,0.00016375,2]
[353632075,1739970645766,-587.0,0.00016375,2]
[353632077,1739970645776,-587.0,0.00016375,2]
[353632079,1739970645785,-587.0,0.00016375,2]
[353632082,1739970645795,-587.0,0.00016375,2]
[353632084,1739970645804,-587.0,0.00016375,2]
[353632086,1739970645814,-587.0,0.00016375,2]
[353632087,1739970645823,-587.0,0.00016375,2]
[353632089,1739970645832,-456.0,0.00016376,2]
[353632091,1739970645841,-456.0,0.00016376,2]
[353632094,1739970645851,-456.0,0.00016376,2]
[353632095,1739970645861,-456.0,0.00016376,2]
[353632097,1739970645870,-456.0,0.00016376,2]
[353632099,1739970645879,-456.0,0.00016376,2]
[353632102,1739970645889,-456.0,0.00016376,2]
[353632104,1739970645898,-456.0,0.00016376,2]
[353632106,1739970645907,-456.0,0.00016376,2]
[353632108,1739970645918,-456.0,0.00016376,2]
[353632109,1739970645928,-456.0,0.00016376,2]
[353632111,1739970645938,-456.0,0.00016376,2]
[353632113,1739970645947,-456.0,0.00016376,2]
[353632115,1739970645958,-456.0,0.00016376,2]
[353632118,1739970645968,-587.0,0.00016377,2]
[353632120,1739970645978,-587.0,0.00016377,2]
[353632122,1739970645991,-587.0,0.00016377,2]
[353632123,1739970646009,-587.0,0.00016377,2]
[353632125,1739970646019,-587.0,0.00016377,2]
[353632127,1739970646028,-587.0,0.00016377,2]
[353632129,1739970646039,-587.0,0.00016377,2]
[353632131,1739970646049,-587.0,0.00016377,2]
[353632133,1739970646059,-587.0,0.00016377,2]
[353632135,1739970646068,-587.0,0.00016377,2]
[353632137,1739970646077,-587.0,0.00016377,2]
[353632139,1739970646087,-587.0,0.00016377,2]
[353632141,1739970646096,-587.0,0.00016377,2]
[353632143,1739970646106,-587.0,0.00016377,2]
[353632145,1739970646115,-456.0,0.00016378,2]
[353632147,1739970646124,-456.0,0.00016378,2]
[353632149,1739970646133,-456.0,0.00016378,2]
[353632151,1739970646143,-456.0,0.00016378,2]
[353632154,1739970646153,-456.0,0.00016378,2]
[353632156,1739970646163,-456.0,0.00016378,2]
[353632157,1739970646172,-456.0,0.00016378,2]
[353632160,1739970646182,-456.0,0.00016378,2]
[353632162,1739970646191,-456.0,0.00016378,2]
[353632163,1739970646200,-456.0,0.00016378,2]
[353632164,1739970646210,-456.0,0.00016378,2]
[353632165,1739970646219,-456.0,0.00016378,2]
[353632166,1739970646228,-456.0,0.00016378,2]
[353632167,1739970646237,-456.0,0.00016378,2]
[353632168,1739970646247,-587.0,0.00016378,2]
[353632169,1739970646256,-587.0,0.00016378,2]
[353632170,1739970646266,-587.0,0.00016378,2]
[353632171,1739970646275,-587.0,0.00016378,2]
[353632172,1739970646284,-587.0,0.00016378,2]
[353632173,1739970646295,-587.0,0.00016378,2]
[353632174,1739970646304,-587.0,0.00016378,2]
[353632175,1739970646314,-587.0,0.00016378,2]
[353632176,1739970646323,-587.0,0.00016378,2]
[353632177,1739970646332,-587.0,0.00016378,2]
[353632178,1739970646341,-587.0,0.00016378,2]
[353632179,1739970646351,-587.0,0.00016378,2]
[353632180,1739970646360,-587.0,0.00016378,2]
[353632181,1739970646370,-587.0,0.00016378,2]
[353632182,1739970646379,-456.0,0.00016385,2]
[353632183,1739970646388,-456.0,0.00016385,2]
[353632184,1739970646397,-456.0,0.00016385,2]
[353632185,1739970646407,-456.0,0.00016385,2]
[353632187,1739970646416,-456.0,0.00016385,2]
[353632189,1739970646425,-456.0,0.00016385,2]
[353632191,1739970646435,-456.0,0.00016385,2]
[353632193,1739970646444,-456.0,0.00016385,2]
[353632195,1739970646453,-456.0,0.00016385,2]
[353632197,1739970646462,-456.0,0.00016385,2]
[353632199,1739970646471,-456.0,0.00016385,2]
[353632201,1739970646481,-456.0,0.00016385,2]
[353632203,1739970646490,-456.0,0.00016385,2]
[353632205,1739970646500,-456.0,0.00016385,2]
[353632207,1739970646508,-456.0,0.00016385,2]
[353632209,1739970646518,-456.0,0.00016385,2]
[353632211,1739970646531,-456.0,0.00016385,2]
[353632213,1739970646541,-587.0,0.00016386,2]
[353632215,1739970646554,-587.0,0.00016386,2]
[353632217,1739970646565,-587.0,0.00016386,2]
[353632219,1739970646574,-587.0,0.00016386,2]
[353632221,1739970646586,-587.0,0.00016386,2]
[353632223,1739970646595,-587.0,0.00016386,2]
[353632225,1739970646605,-587.0,0.00016386,2]
[353632227,1739970646614,-587.0,0.00016386,2]
[353632229,1739970646623,-587.0,0.00016386,2]
[353632231,1739970646632,-587.0,0.00016386,2]
[353632233,1739970646642,-587.0,0.00016386,2]
[353632235,1739970646653,-587.0,0.00016386,2]
[353632237,1739970646663,-587.0,0.00016386,2]
[353632239,1739970646672,-587.0,0.00016386,2]
[353632241,1739970646681,-587.0,0.00016386,2]
[353632243,1739970646691,-587.0,0.00016386,2]
[353632245,1739970646700,-587.0,0.00016386,2]
[353632247,1739970646710,-456.0,0.00016387,2]
[353632249,1739970646719,-456.0,0.00016387,2]
[353632251,1739970646728,-456.0,0.00016387,2]
[353632253,1739970646737,-456.0,0.00016387,2]
[353632255,1739970646747,-456.0,0.00016387,2]
[353632257,1739970646757,-456.0,0.00016387,2]
[353632259,1739970646766,-456.0,0.00016387,2]
[353632261,1739970646775,-456.0,0.00016387,2]
[353632263,1739970646784,-456.0,0.00016387,2]
[353632265,1739970646797,-456.0,0.00016387,2]
[353632267,1739970646807,-456.0,0.00016387,2]
[353632269,1739970646816,-456.0,0.00016387,2]
[353632271,1739970646826,-456.0,0.00016387,2]
[353632273,1739970646836,-456.0,0.00016387,2]
[353632275,1739970646845,-456.0,0.00016387,2]
[353632277,1739970646855,-456.0,0.00016387,2]
[353632279,1739970646864,-456.0,0.00016387,2]
[353632281,1739970646874,-456.0,0.00016387,2]
[353632283,1739970646883,-587.0,0.00016387,2]
[353632285,1739970646892,-587.0,0.00016387,2]
[353632287,1739970646902,-587.0,0.00016387,2]
[353632289,1739970646911,-587.0,0.00016387,2]
[353632291,1739970646921,-587.0,0.00016387,2]
[353632293,1739970646930,-587.0,0.00016387,2]
[353632303,1739970647017,-587.0,0.00016387,2]
[353632305,1739970647027,-587.0,0.00016387,2]
[353632307,1739970647037,-587.0,0.00016387,2]
[353632309,1739970647049,-587.0,0.00016387,2]
[353632311,1739970647059,-587.0,0.00016387,2]
[353632313,1739970647072,-587.0,0.00016387,2]
[353632315,1739970647082,-587.0,0.00016387,2]
[353632318,1739970647092,-587.0,0.00016387,2]
[353632320,1739970647101,-587.0,0.00016387,2]
[353632322,1739970647111,-587.0,0.00016387,2]
[353632323,1739970647120,-587.0,0.00016387,2]
[353632325,1739970647130,-587.0,0.00016387,2]
[353632328,1739970647140,-1114.2377602,0.00016391,2]
[353632330,1739970647150,-151.0,0.000164,2]
[353632332,1739970647159,-504.95281179,0.00016422,2]
[353632333,1739970647169,-1500.0,0.00016422,2]
[353632335,1739970647178,-534.55773278,0.00016422,2]
[353632337,1739970647188,-1500.0,0.00016422,2]
[353632339,1739970647198,-1500.0,0.00016422,2]
[353632341,1739970647207,-1500.0,0.00016422,2]
[353632344,1739970647217,-1000.0,0.00016438,2]
[353632345,1739970647226,-1000.0,0.00016438,2]
[353632347,1739970647236,-397.53754396,0.00016438,2]
[353632348,1739970647245,-168.68376444,0.00016464,2]
[353632349,1739970647255,-151.0,0.000165,2]
[353632350,1739970647265,-1006.50607971,0.000165,2]
[353632351,1739970647275,-500.0,0.000166,7]
[353632352,1739970647285,-500.0,0.000166,7]
[353632353,1739970647297,-500.0,0.000166,7]
[353632354,1739970647308,-500.0,0.000166,7]
[353632355,1739970647318,-500.0,0.000166,7]
[353632356,1739970647328,-500.0,0.000166,7]
[353632357,1739970647338,-500.0,0.000166,7]
[353632358,1739970647348,-500.0,0.000166,7]
[353632359,1739970647358,-500.0,0.000166,7]
[353632360,1739970647368,-566.69,0.000166,7]
[353632361,1739970647377,-59843.77513849,0.0001665,2]
[353632362,1739970647386,-151.0,0.000167,2]
[353632363,1739970647395,-325.96380374,0.0001671,2]
[353632364,1739970647404,-1000.3801526,0.00016721,2]
[353632365,1739970647413,-500.00643651,0.00016721,2]
[353632366,1739970647423,-1000.0,0.00016721,2]
[353632367,1739970647432,-331.98758965,0.00016721,2]
[353632368,1739970647442,-1000.0,0.00016721,2]
[353632369,1739970647452,-522.21733561,0.00016721,2]
[353632370,1739970647461,-1072.78652871,0.00016721,2]
[353632371,1739970647471,-1000.0,0.00016721,2]
[353632372,1739970647480,-467.5136888,0.0001673,2]
[353632373,1739970647489,-160.0,0.00016752,4]
[353632374,1739970647499,-2686.924521,0.00016773,2]
[353632375,1739970647508,-2686.924521,0.00016773,2]
[353632376,1739970647517,-591.546905,0.00016773,2]
[353632377,1739970647530,-591.546905,0.00016773,2]
[353632378,1739970647540,-632.253702,0.00016773,2]
[353632379,1739970647552,-632.253702,0.00016773,2]
[353632380,1739970647562,-823.0,0.00016788,2]
[353632381,1739970647573,-1000.0,0.000168,2]
[353632382,1739970647584,-151.0,0.000169,2]
[353632383,1739970647595,-151.0,0.000169,2]
[353632384,1739970647605,-600.0,0.00016904,2]
[353632385,1739970647615,-1000.0,0.00017,2]
[353632386,1739970647624,-151.0,0.000171,2]
[353632387,1739970647634,-260.030967,0.00017123,2]
[353632388,1739970647643,-151.0,0.000172,2]
[353632389,1739970647652,-557.1188801,0.00017213,2]
[353632390,1739970647662,-557.1188801,0.00017213,2]
[353632391,1739970647671,-557.1188801,0.00017213,2]
[353632392,1739970647681,-2269.2765113,0.00017247,2]
[353632394,1739970647691,-187.59,0.00017272,2]
[353632396,1739970647700,-151.0,0.000173,2]
[353632398,1739970647710,-13275.53870192,0.00017313,2]
[353632400,1739970647720,-279.485742,0.000175,2]
[353632401,1739970647729,-279.485742,0.000175,2]
[353632404,1739970647739,-325.96380374,0.000175,2]
[353632406,1739970647750,-150.78984482,0.000175,2]
[353632408,1739970647759,-150.78,0.000175,2]
[353632410,1739970647769,-156.55855535,0.000175,2]
[353632412,1739970647778,-156.55855535,0.000175,2]
[353632414,1739970647789,-156.55855535,0.000175,2]
[353632416,1739970647799,-156.55855535,0.000175,2]
[353632418,1739970647809,-156.55855535,0.000175,2]
[353632420,1739970647819,-156.55855535,0.000175,2]
[353632422,1739970647829,-156.55855535,0.000175,2]
[353632424,1739970647839,-156.55855535,0.000175,2]
[353632426,1739970647849,-156.55855535,0.000175,2]
[353632428,1739970647858,-156.55855535,0.000175,2]
[353632430,1739970647868,-156.55855535,0.000175,2]
[353632432,1739970647878,-156.55855535,0.000175,2]
[353632434,1739970647888,-156.55855535,0.000175,2]
[353632436,1739970647898,-156.55855535,0.000175,2]
[353632438,1739970647907,-156.55855535,0.000175,2]
[353632440,1739970647917,-156.55,0.000175,2]
[353632442,1739970647926,-302.52650604,0.000175,2]
[353632444,1739970647935,-302.52650604,0.000175,2]
[353632445,1739970647945,-302.52650604,0.000175,2]
[353632448,1739970647956,-302.52650604,0.000175,2]
[353632450,1739970647967,-302.52650604,0.000175,2]
[353632452,1739970647978,-302.52650604,0.000175,2]
[353632454,1739970647988,-302.52650604,0.000175,2]
[353632456,1739970647997,-302.52650604,0.000175,2]
[353632458,1739970648007,-302.52650604,0.000175,2]
[353632460,1739970648017,-302.52650604,0.000175,2]
[353632461,1739970648027,-302.52650604,0.000175,2]
[353632464,1739970648038,-302.52650604,0.000175,2]
[353632465,1739970648049,-302.52650604,0.000175,2]
[353632468,1739970648060,-302.52650604,0.000175,2]
[353632470,1739970648070,-302.52650604,0.000175,2]
[353632471,1739970648080,-302.52650604,0.000175,2]
[353632474,1739970648091,-302.52650604,0.000175,2]
[353632475,1739970648101,-302.52650604,0.000175,2]
[353632477,1739970648111,-302.52650604,0.000175,2]
[353632480,1739970648121,-302.52,0.000175,2]
[353632482,1739970648132,-154.65899617,0.00017534,4]
[353632483,1739970648143,-324.0,0.0001754,2]
[353632485,1739970648154,-154.519,0.00017552,2]
[353632487,1739970648165,-253.439,0.00017552,2]
[353632489,1739970648175,-150.0,0.00017552,2]
[353632491,1739970648186,-538.0,0.00017552,2]
[353632494,1739970648197,-1971.0,0.00017552,2]
[353632495,1739970648207,-2307.589,0.00017552,2]
[353632497,1739970648218,-500.38816275,0.00017573,2]
[353632499,1739970648228,-500.0,0.00017573,2]
[353632502,1739970648240,-500.18961432,0.00017573,2]
[353632504,1739970648251,-500.0,0.00017573,2]
[353632505,1739970648262,-500.0,0.00017573,2]
[353632507,1739970648274,-160.04038112,0.00017573,2]
[353632510,1739970648284,-500.83239552,0.00017573,2]
[353632512,1739970648294,-202.33373883,0.00017599,2]
[353632514,1739970648303,-578.82782987,0.00017599,2]
[353632516,1739970648313,-160.0,0.00017599,2]
[353632518,1739970648321,-160.0,0.00017599,2]
[353632520,1739970648331,-236768.89313259,0.000176,2]
[353632522,1739970648339,-1516.424899,0.000176,2]
[353632524,1739970648348,-1516.424899,0.000176,2]
[353632525,1739970648356,-1516.424899,0.000176,2]
[353632527,1739970648366,-1516.424899,0.000176,2]
[353632529,1739970648376,-151.357764,0.000176,2]
[353632531,1739970648386,-151.357764,0.000176,2]
[353632533,1739970648396,-151.357764,0.000176,2]
[353632536,1739970648407,-151.357764,0.000176,2]
[353632538,1739970648418,-500.0,0.000176,2]
[353632540,1739970648429,-500.0,0.000176,2]
[353632541,1739970648440,-500.0,0.000176,2]
[353632543,1739970648450,-500.0,0.000176,2]
[353632545,1739970648461,-279.485742,0.000176,2]
[353632547,1739970648471,-279.485742,0.000176,2]
[353632549,1739970648481,-279.485742,0.000176,2]
[353632551,1739970648491,-279.485742,0.000176,2]
[353632553,1739970648501,-151.0,0.000176,2]
[353632555,1739970648512,-2686.924521,0.000176,2]
[353632557,1739970648524,-2686.924521,0.000176,2]
[353632560,1739970648536,-2686.924521,0.000176,2]
[353632561,1739970648548,-2686.924521,0.000176,2]
[353632563,1739970648559,-2686.924521,0.000176,2]
[353632565,1739970648571,-2686.924521,0.000176,2]
[353632568,1739970648582,-591.546905,0.000176,2]
[353632570,1739970648593,-591.546905,0.000176,2]
[353632572,1739970648604,-591.546905,0.000176,2]
[353632573,1739970648615,-591.546905,0.000176,2]
[353632575,1739970648626,-591.546905,0.000176,2]
[353632578,1739970648637,-591.546905,0.000176,2]
[353632579,1739970648647,-632.253702,0.000176,2]
[353632580,1739970648658,-632.253702,0.000176,2]
[353632581,1739970648668,-632.253702,0.000176,2]
[353632582,1739970648677,-632.253702,0.000176,2]
[353632583,1739970648687,-632.253702,0.000176,2]
[353632584,1739970648698,-632.253702,0.000176,2]
[353632585,1739970648708,-150.29,0.000176,2]
[353632586,1739970648718,-477740.2464119,0.000176,2]
[353632594,1739970648796,-2598999.4235881,0.000176,2]
[353632604,1739970648888,-204.66108231,0.000176,2]
[353632606,1739970648908,-349.0,0.000176,2]
[353632608,1739970648919,-314.0,0.000176,2]
[353632610,1739970648929,-349.0,0.000176,2]
[353632612,1739970648940,-314.0,0.000176,2]
[353632613,1739970648951,-349.0,0.000176,2]
[353632614,1739970648962,-314.0,0.000176,2]
[353632615,1739970648974,-349.0,0.000176,2]
[353632617,1739970648984,-314.0,0.000176,2]
[353632619,1739970648994,-349.0,0.000176,2]
[353632621,1739970649003,-314.0,0.000176,2]
[353632624,1739970649014,-217.11643488,0.000176,2]
[353632626,1739970649024,-314.0,0.000176,2]
[353632628,1739970649035,-314.0,0.000176,2]
[353632630,1739970649047,-314.0,0.000176,2]
[353632631,1739970649057,-314.0,0.000176,2]
[353632632,1739970649068,-314.0,0.000176,2]
[353632633,1739970649078,-314.0,0.000176,2]
[353632634,1739970649088,-314.0,0.000176,2]
[353632635,1739970649098,-314.0,0.000176,2]
[353632636,1739970649108,-314.0,0.000176,2]
[353632637,1739970649119,-314.0,0.000176,2]
[353632638,1739970649129,-314.0,0.000176,2]
[353632639,1739970649140,-359.25223506,0.000176,2]
[353632640,1739970649151,-452.352041,0.000176,2]
[353632641,1739970649163,-452.352041,0.000176,2]
[353632642,1739970649174,-1000.0,0.000176,2]
[353632643,1739970649185,-1000.0,0.000176,4]
[353632644,1739970649196,-1194.523493,0.000176,2]
[353632645,1739970649206,-1201.591755,0.000176,2]
[353632646,1739970649218,-1194.523493,0.000176,2]
[353632647,1739970649229,-1201.591755,0.000176,2]
[353632648,1739970649240,-396.337412,0.000176,2]
[353632649,1739970649250,-151.0,0.000176,2]
[353632650,1739970649260,-396.337412,0.000176,2]
[353632651,1739970649270,-209.95799,0.000176,2]
[353632652,1739970649280,-151.0,0.000176,2]
[353632653,1739970649290,-997.479357,0.000176,2]
[353632654,1739970649303,-997.479357,0.000176,2]
[353632655,1739970649313,-500.0,0.000176,2]
[353632656,1739970649323,-160.62562072,0.000176,2]
[353632657,1739970649333,-150.29,0.000176,2]
[353632658,1739970649343,-150.29,0.000176,2]
[353632659,1739970649354,-150.29,0.000176,2]
[353632660,1739970649365,-300.21963662,0.000176,2]
[353632661,1739970649375,-150.31097465,0.000176,2]
[353632662,1739970649385,-151.0,0.000176,2]
[353632663,1739970649395,-151.0,0.000176,2]
[353632664,1739970649406,-151.0,0.000176,2]
[353632665,1739970649416,-1809.574645,0.000176,2]
[353632666,1739970649426,-1809.574645,0.000176,2]
[353632667,1739970649435,-500.0,0.000176,2]
[353632668,1739970649445,-4696.480008,0.000176,2]
[353632669,1739970649456,-150.29,0.000176,2]
[353632670,1739970649466,-150.29,0.000176,2]
[353632671,1739970649477,-4696.480008,0.000176,2]
[353632673,1739970649487,-809.0,0.000176,2]
[353632675,1739970649497,-934.0,0.000176,2]
[353632677,1739970649509,-530.0,0.000176,2]
[353632679,1739970649522,-150.29,0.000176,2]
[353632681,1739970649533,-605.058067,0.000176,2]
[353632683,1739970649544,-500.0,0.000176,2]
[353632684,1739970649555,-150.29,0.000176,2]
[353632686,1739970649567,-605.058067,0.000176,2]
[353632689,1739970649577,-627.43805,0.000176,2]
[353632691,1739970649588,-627.43805,0.000176,2]
[353632692,1739970649598,-151.0,0.000176,2]
[353632694,1739970649611,-2500.0,0.00017616,2]
[353632697,1739970649622,-2500.0,0.00017625,2]
[353632698,1739970649633,-500.0,0.00017627,2]
[353632700,1739970649643,-2500.0,0.00017633,2]
[353632702,1739970649654,-2500.0,0.00017639,2]
[353632704,1739970649664,-2500.0,0.00017642,2]
[353632706,1739970649675,-2500.0,0.00017648,2]
[353632708,1739970649686,-2500.0,0.00017651,2]
[353632710,1739970649696,-2000.0,0.0001772,2]
[353632712,1739970649706,-2000.0,0.0001772,2]
[353632714,1739970649716,-1150.54605966,0.0001772,2]
[353632716,1739970649727,-1503.6147836,0.0001772,2]
[353632718,1739970649738,-1000.95075043,0.00017722,2]
[353632720,1739970649748,-1500.0,0.00017722,2]
[353632722,1739970649759,-501.30101814,0.00017722,2]
[353632724,1739970649769,-500.0,0.00017727,2]
[353632726,1739970649780,-1358.00983653,0.00017767,2]
[353632728,1739970649791,-152.50615758,0.000178,2]
[353632730,1739970649804,-3000.0,0.000178,2]
[353632732,1739970649814,-151.0,0.000178,2]
[353632735,1739970649825,-1358.00983653,0.00017811,2]
[353632736,1739970649835,-250.0,0.00017814,10]
[353632739,1739970649845,-500.0,0.00017827,2]
[353632741,1739970649855,-1358.00983653,0.00017856,2]
[353632743,1739970649865,-238.42076094,0.00017874,2]
[353632745,1739970649875,-500.0,0.00017874,2]
[353632747,1739970649885,-150.29,0.00017874,2]
[353632749,1739970649896,-179.71264184,0.00017874,2]
[353632751,1739970649906,-150.29,0.00017874,2]
[353632753,1739970649916,-500.0,0.00017874,2]
[353632755,1739970649926,-150.29,0.00017874,2]
[353632757,1739970649935,-809.0,0.00017874,2]
[353632759,1739970649945,-530.0,0.00017874,2]
[353632761,1739970649954,-500.0,0.00017874,2]
[353632763,1739970649966,-150.29,0.00017874,2]
[353632765,1739970649975,-3000.0,0.0001789,2]
[353632767,1739970649984,-5000.0,0.00017895,2]
[353632769,1739970649993,-5000.0,0.00017895,2]
[353632771,1739970650003,-5000.0,0.00017895,2]
[353632773,1739970650012,-5000.0,0.00017895,2]
[353632775,1739970650020,-5000.0,0.00017895,2]
[353632777,1739970650029,-160.0,0.00017899,2]
[353632779,1739970650038,-151.0,0.000179,2]
[353632781,1739970650048,-151.0,0.000179,2]
[353632783,1739970650057,-1071.854575,0.000179,2]
[353632785,1739970650066,-1071.854575,0.000179,2]
[353632787,1739970650076,-1516.424899,0.000179,2]
[353632789,1739970650087,-1516.424899,0.000179,2]
[353632791,1739970650096,-500.0,0.000179,2]
[353632793,1739970650105,-500.0,0.000179,2]
[353632795,1739970650119,-279.485742,0.000179,2]
[353632797,1739970650128,-279.485742,0.000179,2]
[353632799,1739970650137,-2686.924521,0.000179,2]
[353632801,1739970650147,-2686.924521,0.000179,2]
[353632803,1739970650156,-632.253702,0.000179,2]
[353632806,1739970650167,-632.253702,0.000179,2]
[353632808,1739970650176,-1358.00983653,0.000179,2]
[353632810,1739970650185,-168.68376444,0.000179,2]
[353632812,1739970650195,-59843.77513849,0.000179,2]
[353632814,1739970650204,-5000.0,0.00017902,2]
[353632816,1739970650213,-5000.0,0.00017902,2]
[353632818,1739970650223,-5000.0,0.00017902,2]
[353632819,1739970650232,-5000.0,0.00017902,2]
[353632821,1739970650241,-5000.0,0.00017902,2]
[353632823,1739970650251,-5000.0,0.00017902,2]
[353632825,1739970650260,-184.882004,0.00017902,2]
[353632827,1739970650269,-184.882004,0.00017902,2]
[353632829,1739970650278,-151.357764,0.00017902,2]
[353632831,1739970650288,-151.357764,0.00017902,2]
[353632833,1739970650297,-591.546905,0.00017902,2]
[353632835,1739970650306,-591.546905,0.00017902,2]
[353632837,1739970650316,-500.0,0.00017927,2]
[353632839,1739970650326,-161.984055,0.00017942,4]
[353632841,1739970650336,-160.0,0.00017989,2]
[353632843,1739970650346,-236913.37427604,0.0001799,2]
[353632845,1739970650355,-255.452223,0.0001799,2]
[353632846,1739970650365,-255.452223,0.0001799,2]
[353632847,1739970650374,-459.394077,0.0001799,2]
[353632849,1739970650383,-459.394077,0.0001799,2]
[353632851,1739970650392,-151.0,0.0001799,2]
[353632852,1739970650401,-151.0,0.0001799,2]
[353632853,1739970650411,-151.0,0.0001799,2]
[353632854,1739970650419,-500.0,0.0001799,2]
[353632855,1739970650429,-500.0,0.0001799,2]
[353632856,1739970650438,-244.052745,0.0001799,2]
[353632857,1739970650447,-244.052745,0.0001799,2]
[353632858,1739970650457,-388.09662,0.0001799,2]
[353632859,1739970650466,-388.09662,0.0001799,2]
[353632860,1739970650475,-184.882004,0.0001799,2]
[353632861,1739970650485,-184.882004,0.0001799,2]
[353632862,1739970650494,-277.827194,0.0001799,2]
[353632863,1739970650503,-151.0,0.0001799,2]
[353632864,1739970650512,-1071.854575,0.0001799,2]
[353632865,1739970650522,-1071.854575,0.0001799,2]
[353632866,1739970650537,-1516.424899,0.0001799,2]
[353632867,1739970650619,-1516.424899,0.0001799,2]
[353632868,1739970650629,-151.357764,0.0001799,2]
[353632869,1739970650639,-151.357764,0.0001799,2]
[353632870,1739970650649,-500.0,0.0001799,2]
[353632871,1739970650658,-500.0,0.0001799,2]
[353632872,1739970650668,-279.485742,0.0001799,2]
[353632873,1739970650678,-279.485742,0.0001799,2]
[353632874,1739970650687,-2686.924521,0.0001799,2]
[353632875,1739970650697,-2686.924521,0.0001799,2]
[353632876,1739970650706,-591.546905,0.0001799,2]
[353632877,1739970650715,-591.546905,0.0001799,2]
[353632878,1739970650724,-632.253702,0.0001799,2]
[353632879,1739970650734,-632.253702,0.0001799,2]
[353632880,1739970650744,-452.352041,0.0001799,2]
[353632881,1739970650753,-452.352041,0.0001799,2]
[353632882,1739970650763,-1194.523493,0.0001799,2]
[353632883,1739970650772,-1201.591755,0.0001799,2]
[353632884,1739970650782,-236.102534,0.0001799,2]
[353632885,1739970650792,-1194.523493,0.0001799,2]
[353632886,1739970650802,-1201.591755,0.0001799,2]
[353632887,1739970650811,-236.102534,0.0001799,2]
[353632888,1739970650820,-396.337412,0.0001799,2]
[353632889,1739970650829,-151.0,0.0001799,2]
[353632890,1739970650839,-396.337412,0.0001799,2]
[353632891,1739970650849,-151.0,0.0001799,2]